[Event "Božićni turnir u VaraždinskimToplicama 26.12.2025."]
[Site "Varazdinske Toplice, Croatia"]
[Date "2025.12.26"]
[Round "7.12"]
[White "Srnec, Sladjan"]
[Black "Bedekovic, Jakov"]
[Result "0-1"]
[TimeControl "10"]
[WhiteFideId "14524554"]
[BlackFideId "14596458"]
[WhiteElo "1795"]
[BlackElo "1965"]

1. f4 {[%clk 00:09:58]} {[%emt 00:00:01]} d5 {[%clk 00:09:59]} {[%emt
00:00:02]} 2. Nf3 {[%clk 00:09:57]} {[%emt 00:00:02]} c5 {[%clk 00:09:58]} 3.
e3 {[%clk 00:09:56]} {[%emt 00:00:01]} Nf6 {[%clk 00:09:57]} 4. d4 {[%clk
00:09:55]} {[%emt 00:00:01]} e6 {[%clk 00:09:44]} {[%emt 00:00:13]} 5. c3
{[%clk 00:09:54]} {[%emt 00:00:01]} Nc6 {[%clk 00:09:43]} {[%emt 00:00:02]} 6.
Bd3 {[%clk 00:09:53]} {[%emt 00:00:01]} Be7 {[%clk 00:09:34]} {[%emt 00:00:08]}
7. O-O {[%clk 00:09:50]} {[%emt 00:00:03]} Qc7 {[%clk 00:09:31]} {[%emt
00:00:03]} 8. Bd2 {[%clk 00:09:45]} {[%emt 00:00:05]} Bd7 {[%clk 00:09:28]}
{[%emt 00:00:05]} 9. Be1 {[%clk 00:09:44]} {[%emt 00:00:01]} h6 {[%clk
00:09:25]} {[%emt 00:00:03]} 10. Nbd2 {[%clk 00:09:37]} {[%emt 00:00:06]} c4
{[%clk 00:09:24]} {[%emt 00:00:01]} 11. Bc2 {[%clk 00:09:35]} {[%emt 00:00:02]}
O-O-O {[%clk 00:09:22]} {[%emt 00:00:03]} 12. b3 {[%clk 00:09:26]} {[%emt
00:00:08]} Na5 {[%clk 00:09:10]} {[%emt 00:00:12]} 13. Ne5 {[%clk 00:09:18]}
{[%emt 00:00:07]} Rdf8 {[%clk 00:08:59]} {[%emt 00:00:13]} 14. Nxd7 {[%clk
00:08:59]} {[%emt 00:00:18]} Nxd7 {[%clk 00:08:54]} {[%emt 00:00:05]} 15. Qe2
{[%clk 00:08:49]} {[%emt 00:00:10]} Nb6 {[%clk 00:08:48]} {[%emt 00:00:07]} 16.
bxc4 {[%clk 00:08:30]} {[%emt 00:00:19]} Nbxc4 {[%clk 00:08:39]} {[%emt
00:00:08]} 17. Bb3 {[%clk 00:08:25]} {[%emt 00:00:04]} g5 {[%clk 00:08:13]}
{[%emt 00:00:27]} 18. Bg3 {[%clk 00:08:22]} {[%emt 00:00:03]} Bd6 {[%clk
00:08:07]} {[%emt 00:00:07]} 19. Bxc4 {[%clk 00:08:04]} {[%emt 00:00:17]} Nxc4
{[%clk 00:08:04]} {[%emt 00:00:03]} 20. Nxc4 {[%clk 00:07:55]} {[%emt
00:00:09]} dxc4 {[%clk 00:08:01]} {[%emt 00:00:04]} 21. a4 {[%clk 00:07:25]}
{[%emt 00:00:30]} h5 {[%clk 00:07:58]} {[%emt 00:00:03]} 22. h3 {[%clk
00:07:20]} {[%emt 00:00:05]} Rfg8 {[%clk 00:07:13]} {[%emt 00:00:44]} 23. a5
{[%clk 00:07:09]} {[%emt 00:00:12]} h4 {[%clk 00:06:53]} {[%emt 00:00:20]} 24.
Bh2 {[%clk 00:07:03]} {[%emt 00:00:05]} g4 {[%clk 00:06:50]} {[%emt 00:00:03]}
25. a6 {[%clk 00:06:48]} {[%emt 00:00:16]} b5 {[%clk 00:06:30]} {[%emt
00:00:20]} 26. hxg4 {[%clk 00:06:38]} {[%emt 00:00:08]} h3 {[%clk 00:06:12]}
{[%emt 00:00:20]} 27. g3 {[%clk 00:05:50]} {[%emt 00:00:47]} Qc6 {[%clk
00:06:06]} {[%emt 00:00:06]} 28. Qf3 {[%clk 00:05:45]} {[%emt 00:00:05]} Kd7
{[%clk 00:06:01]} {[%emt 00:00:06]} 29. Qxc6+ {[%clk 00:05:08]} {[%emt
00:00:36]} Kxc6 {[%clk 00:05:59]} {[%emt 00:00:01]} 30. g5 {[%clk 00:05:00]}
{[%emt 00:00:09]} Rb8 {[%clk 00:05:51]} {[%emt 00:00:07]} 31. Rfb1 {[%clk
00:04:54]} {[%emt 00:00:07]} Rb6 {[%clk 00:05:50]} {[%emt 00:00:02]} 32. Kf2
{[%clk 00:04:50]} {[%emt 00:00:03]} Rhb8 {[%clk 00:05:33]} {[%emt 00:00:17]} 33.
Kf3 {[%clk 00:04:24]} {[%emt 00:00:26]} b4 {[%clk 00:05:32]} {[%emt 00:00:01]}
34. cxb4 {[%clk 00:04:12]} {[%emt 00:00:12]} Bxb4 {[%clk 00:05:30]} {[%emt
00:00:03]} 35. Rc1 {[%clk 00:04:06]} {[%emt 00:00:04]} Kd5 {[%clk 00:05:23]}
{[%emt 00:00:08]} 36. Bg1 {[%clk 00:04:01]} {[%emt 00:00:05]} c3 {[%clk
00:05:16]} {[%emt 00:00:07]} 37. e4+ {[%clk 00:03:47]} {[%emt 00:00:13]} Kc4
{[%clk 00:05:15]} {[%emt 00:00:02]} 38. d5 {[%clk 00:03:32]} {[%emt 00:00:15]}
Rd6 {[%clk 00:04:46]} {[%emt 00:00:29]} 39. Bxa7 {[%clk 00:03:25]} {[%emt
00:00:07]} Ra8 {[%clk 00:04:46]} {[%emt 00:00:01]} 40. Be3 {[%clk 00:03:11]}
{[%emt 00:00:14]} exd5 {[%clk 00:04:44]} {[%emt 00:00:02]} 41. exd5 {[%clk
00:03:06]} {[%emt 00:00:04]} Rxd5 {[%clk 00:04:37]} {[%emt 00:00:07]} 42. Kg4
{[%clk 00:02:59]} {[%emt 00:00:07]} h2 {[%clk 00:04:34]} {[%emt 00:00:03]} 43.
a7 {[%clk 00:02:48]} {[%emt 00:00:12]} Ra5 {[%clk 00:04:05]} {[%emt 00:00:29]}
44. f5 {[%clk 00:02:32]} {[%emt 00:00:15]} Rxa1 {[%clk 00:04:03]} {[%emt
00:00:02]} 45. Rxa1 {[%clk 00:02:31]} Kd3 {[%clk 00:03:56]} {[%emt 00:00:08]}
46. Kf3 {[%clk 00:02:28]} {[%emt 00:00:02]} c2 {[%clk 00:03:43]} {[%emt
00:00:14]} 47. Ra4 {[%clk 00:01:38]} {[%emt 00:00:49]} h1=Q {[%clk 00:03:40]}
{[%emt 00:00:04]} 48. Kf4 {[%clk 00:01:30]} {[%emt 00:00:07]} Bd6+ {[%clk
00:03:39]} {[%emt 00:00:02]} 49. Kg4 {[%clk 00:01:24]} {[%emt 00:00:06]} Kxe3
{[%clk 00:03:36]} {[%emt 00:00:02]} 50. g6 {[%clk 00:01:17]} {[%emt 00:00:07]}
fxg6 {[%clk 00:03:32]} {[%emt 00:00:04]} 51. fxg6 {[%clk 00:01:10]} {[%emt
00:00:07]} Qh6 {[%clk 00:03:29]} {[%emt 00:00:03]} 52. Kf5 {[%clk 00:01:02]}
{[%emt 00:00:08]} Rf8+ {[%clk 00:03:25]} {[%emt 00:00:04]} 53. Ke6 {[%clk
00:01:00]} {[%emt 00:00:02]} Qxg6+ {[%clk 00:03:23]} {[%emt 00:00:02]} 54. Kd7
{[%clk 00:00:59]} Qf7+ {[%clk 00:03:19]} {[%emt 00:00:05]} 55. Kc6 {[%clk
00:00:57]} {[%emt 00:00:03]} Qc7+ {[%clk 00:03:18]} {[%emt 00:00:01]} 56. Kd5
{[%clk 00:00:56]} {[%emt 00:00:02]} Rf5+ {[%clk 00:03:17]} {[%emt 00:00:01]} 57.
Ke6 {[%clk 00:00:54]} {[%emt 00:00:02]} Qe7+ {[%clk 00:03:16]} {[%emt
00:00:01]} 58. Kxf5 {[%clk 00:00:51]} {[%emt 00:00:02]} Qd7+ {[%clk 00:03:14]}
{[%emt 00:00:02]} 0-1

[Event "Božićni turnir u VaraždinskimToplicama 26.12.2025."]
[Site "Varazdinske Toplice, Croatia"]
[Date "2025.12.26"]
[Round "7.13"]
[White "Soelkner, Julian"]
[Black "Jarnjak, Zlatko"]
[Result "1-0"]
[TimeControl "10"]
[WhiteFideId "1665421"]
[BlackFideId "79305938"]
[WhiteElo "1661"]
[BlackElo "1644"]

1. d4 {[%clk 00:09:58]} {[%emt 00:00:03]} d6 {[%clk 00:09:58]} {[%emt
00:00:02]} 2. e4 {[%clk 00:09:56]} {[%emt 00:00:02]} Nf6 {[%clk 00:09:56]}
{[%emt 00:00:02]} 3. Bd3 {[%clk 00:09:55]} e5 {[%clk 00:09:53]} {[%emt
00:00:03]} 4. Ne2 {[%clk 00:09:52]} {[%emt 00:00:03]} Be7 {[%clk 00:09:50]}
{[%emt 00:00:03]} 5. O-O {[%clk 00:09:49]} {[%emt 00:00:04]} O-O {[%clk
00:09:48]} {[%emt 00:00:02]} 6. h3 {[%clk 00:09:33]} {[%emt 00:00:16]} a5
{[%clk 00:09:37]} {[%emt 00:00:10]} 7. c4 {[%clk 00:08:32]} {[%emt 00:01:01]}
Nbd7 {[%clk 00:09:28]} {[%emt 00:00:09]} 8. Be3 {[%clk 00:08:15]} {[%emt
00:00:17]} exd4 {[%clk 00:09:01]} {[%emt 00:00:27]} 9. Bxd4 {[%clk 00:07:59]}
{[%emt 00:00:16]} Ne5 {[%clk 00:09:00]} {[%emt 00:00:01]} 10. Ng3 {[%clk
00:07:30]} {[%emt 00:00:29]} c5 {[%clk 00:08:37]} {[%emt 00:00:23]} 11. Bc3
{[%clk 00:07:16]} {[%emt 00:00:15]} g6 {[%clk 00:07:44]} {[%emt 00:00:52]} 12.
Be2 {[%clk 00:07:02]} {[%emt 00:00:14]} Be6 {[%clk 00:07:37]} {[%emt 00:00:06]}
13. Nd2 {[%clk 00:06:49]} {[%emt 00:00:14]} Qc7 {[%clk 00:07:13]} {[%emt
00:00:25]} 14. f4 {[%clk 00:06:13]} {[%emt 00:00:35]} Nc6 {[%clk 00:06:18]}
{[%emt 00:00:55]} 15. f5 {[%clk 00:06:10]} {[%emt 00:00:03]} Nd7 {[%clk
00:05:42]} {[%emt 00:00:36]} 16. fxe6 {[%clk 00:06:05]} {[%emt 00:00:05]} fxe6
{[%clk 00:05:39]} {[%emt 00:00:02]} 17. Nf3 {[%clk 00:05:52]} {[%emt 00:00:14]}
e5 {[%clk 00:05:34]} {[%emt 00:00:05]} 18. Qd3 {[%clk 00:05:00]} {[%emt
00:00:52]} Nd8 {[%clk 00:04:55]} {[%emt 00:00:39]} 19. Bd2 {[%clk 00:04:54]}
{[%emt 00:00:06]} Ne6 {[%clk 00:04:49]} {[%emt 00:00:06]} 20. Bh6 {[%clk
00:04:37]} {[%emt 00:00:17]} Rf7 {[%clk 00:04:25]} {[%emt 00:00:24]} 21. Qd2
{[%clk 00:04:10]} {[%emt 00:00:28]} Nf4 {[%clk 00:04:14]} {[%emt 00:00:10]} 22.
Nh2 {[%clk 00:03:56]} {[%emt 00:00:13]} g5 {[%clk 00:04:00]} {[%emt 00:00:14]}
23. Nf5 {[%clk 00:03:38]} {[%emt 00:00:18]} Nf8 {[%clk 00:03:44]} {[%emt
00:00:17]} 24. Bg4 {[%clk 00:03:10]} {[%emt 00:00:29]} N4g6 {[%clk 00:03:22]}
{[%emt 00:00:21]} 25. Rad1 {[%clk 00:02:53]} {[%emt 00:00:17]} Rd8 {[%clk
00:03:19]} {[%emt 00:00:04]} 26. Bxg5 {[%clk 00:02:40]} {[%emt 00:00:12]} Bxg5
{[%clk 00:03:07]} {[%emt 00:00:12]} 27. Qxg5 {[%clk 00:02:38]} {[%emt
00:00:03]} Ne6 {[%clk 00:02:58]} {[%emt 00:00:09]} 28. Nh6+ {[%clk 00:02:26]}
{[%emt 00:00:11]} Kg7 {[%clk 00:02:49]} {[%emt 00:00:10]} 29. Bxe6 {[%clk
00:02:19]} {[%emt 00:00:06]} Rxf1+ {[%clk 00:02:26]} {[%emt 00:00:23]} 30. Rxf1
{[%clk 00:02:17]} {[%emt 00:00:03]} Rf8 {[%clk 00:02:16]} {[%emt 00:00:10]} 31.
Rxf8 Kxf8 {[%clk 00:02:14]} 32. Qf6+ {[%clk 00:02:05]} {[%emt 00:00:02]} 1-0

[Event "Božićni turnir u VaraždinskimToplicama 26.12.2025."]
[Site "Varazdinske Toplice, Croatia"]
[Date "2025.12.26"]
[Round "7.14"]
[White "Bicanic, Mile"]
[Black "Forstnaric, Zdravko"]
[Result "0-1"]
[TimeControl "10"]
[WhiteFideId "14579995"]
[BlackFideId "14523841"]
[WhiteElo "1761"]
[BlackElo "1836"]

1. d4 {[%clk 00:09:58]} {[%emt 00:00:01]} d5 {[%clk 00:09:59]} {[%emt
00:00:02]} 2. Bf4 {[%clk 00:09:55]} {[%emt 00:00:02]} Nf6 {[%clk 00:09:57]}
{[%emt 00:00:02]} 3. e3 {[%clk 00:09:53]} {[%emt 00:00:03]} c6 {[%clk
00:09:51]} {[%emt 00:00:06]} 4. Bd3 {[%clk 00:09:48]} {[%emt 00:00:05]} g6
{[%clk 00:09:49]} 5. Nd2 {[%clk 00:09:46]} {[%emt 00:00:02]} Bg7 {[%clk
00:09:48]} {[%emt 00:00:02]} 6. Ngf3 {[%clk 00:09:44]} {[%emt 00:00:01]} Nbd7
{[%clk 00:09:47]} {[%emt 00:00:01]} 7. Ne5 {[%clk 00:09:43]} {[%emt 00:00:02]}
O-O {[%clk 00:09:43]} {[%emt 00:00:04]} 8. Ndf3 {[%clk 00:09:42]} {[%emt
00:00:01]} c5 {[%clk 00:09:37]} {[%emt 00:00:06]} 9. c3 {[%clk 00:09:40]}
{[%emt 00:00:02]} c4 {[%clk 00:09:36]} {[%emt 00:00:01]} 10. Bc2 {[%clk
00:09:39]} {[%emt 00:00:01]} Nxe5 {[%clk 00:09:32]} {[%emt 00:00:03]} 11. Nxe5
{[%clk 00:09:25]} {[%emt 00:00:14]} Be6 {[%clk 00:09:26]} {[%emt 00:00:07]} 12.
h4 {[%clk 00:09:16]} {[%emt 00:00:09]} h5 {[%clk 00:09:24]} {[%emt 00:00:02]}
13. Bg5 {[%clk 00:08:51]} {[%emt 00:00:24]} Ng4 {[%clk 00:08:59]} {[%emt
00:00:26]} 14. Nxg4 {[%clk 00:08:02]} {[%emt 00:00:49]} Bxg4 {[%clk 00:08:57]}
{[%emt 00:00:01]} 15. f3 {[%clk 00:07:57]} {[%emt 00:00:07]} Bd7 {[%clk
00:08:53]} {[%emt 00:00:04]} 16. g4 {[%clk 00:07:49]} {[%emt 00:00:07]} Qc7
{[%clk 00:08:44]} {[%emt 00:00:09]} 17. Bf4 {[%clk 00:07:42]} {[%emt 00:00:07]}
e5 {[%clk 00:08:43]} 18. dxe5 {[%clk 00:07:19]} {[%emt 00:00:24]} Bxe5 {[%clk
00:08:40]} {[%emt 00:00:02]} 19. Bxe5 {[%clk 00:06:33]} {[%emt 00:00:47]} Qxe5
{[%clk 00:08:39]} {[%emt 00:00:01]} 20. Qe2 {[%clk 00:05:51]} {[%emt 00:00:42]}
Rae8 {[%clk 00:08:25]} {[%emt 00:00:14]} 21. Kf2 {[%clk 00:05:24]} {[%emt
00:00:27]} hxg4 {[%clk 00:08:09]} {[%emt 00:00:16]} 22. fxg4 {[%clk 00:05:15]}
{[%emt 00:00:09]} Re6 {[%clk 00:08:06]} {[%emt 00:00:02]} 23. g5 {[%clk
00:04:22]} {[%emt 00:00:53]} Rfe8 {[%clk 00:08:05]} {[%emt 00:00:02]} 24. Rae1
{[%clk 00:04:21]} R6e7 {[%clk 00:07:39]} {[%emt 00:00:26]} 25. Qf3 {[%clk
00:04:10]} {[%emt 00:00:10]} Bc6 {[%clk 00:07:34]} {[%emt 00:00:06]} 26. Qf4
{[%clk 00:03:38]} {[%emt 00:00:31]} Qe6 {[%clk 00:07:09]} {[%emt 00:00:26]} 27.
Rhf1 {[%clk 00:03:20]} {[%emt 00:00:18]} Qh3 {[%clk 00:07:02]} {[%emt
00:00:06]} 28. Rh1 {[%clk 00:02:43]} {[%emt 00:00:38]} Qe6 {[%clk 00:06:57]}
{[%emt 00:00:05]} 29. Rhg1 {[%clk 00:02:40]} {[%emt 00:00:03]} b5 {[%clk
00:06:20]} {[%emt 00:00:36]} 30. Qg4 {[%clk 00:02:38]} {[%emt 00:00:02]} Qd6
{[%clk 00:06:07]} {[%emt 00:00:13]} 31. h5 {[%clk 00:02:34]} {[%emt 00:00:04]}
d4 {[%clk 00:05:41]} {[%emt 00:00:26]} 32. Qxd4 {[%clk 00:02:08]} {[%emt
00:00:27]} Qh2+ {[%clk 00:05:34]} {[%emt 00:00:06]} 33. Kf1 {[%clk 00:01:56]}
{[%emt 00:00:13]} Qxc2 {[%clk 00:05:26]} {[%emt 00:00:08]} 34. hxg6 {[%clk
00:01:49]} {[%emt 00:00:07]} fxg6 {[%clk 00:05:17]} {[%emt 00:00:09]} 35. Re2
{[%clk 00:01:44]} {[%emt 00:00:05]} Rf8+ {[%clk 00:05:08]} {[%emt 00:00:09]} 36.
Ke1 {[%clk 00:01:42]} {[%emt 00:00:02]} Qc1+ {[%clk 00:05:03]} {[%emt
00:00:04]} 37. Qd1 {[%clk 00:01:41]} {[%emt 00:00:02]} Qxd1+ {[%clk 00:05:01]}
{[%emt 00:00:01]} 38. Kxd1 {[%clk 00:01:39]} {[%emt 00:00:03]} Bf3 {[%clk
00:04:59]} {[%emt 00:00:01]} 0-1

[Event "Božićni turnir u VaraždinskimToplicama 26.12.2025."]
[Site "Varazdinske Toplice, Croatia"]
[Date "2025.12.26"]
[Round "7.15"]
[White "Veres, Vedran"]
[Black "Brnadic, Grga"]
[Result "0-1"]
[TimeControl "10"]
[WhiteFideId "79330134"]
[BlackFideId "14578999"]
[WhiteElo "1930"]
[BlackElo "1387"]

1. e4 {[%clk 00:09:59]} c5 {[%clk 00:10:00]} 2. g3 {[%clk 00:09:58]} {[%emt
00:00:01]} d6 {[%clk 00:09:55]} {[%emt 00:00:04]} 3. Bg2 {[%clk 00:09:56]}
{[%emt 00:00:02]} Nf6 {[%clk 00:09:54]} 4. Ne2 {[%clk 00:09:53]} {[%emt
00:00:03]} g6 {[%clk 00:09:51]} {[%emt 00:00:04]} 5. O-O {[%clk 00:09:51]}
{[%emt 00:00:02]} Bg7 {[%clk 00:09:50]} {[%emt 00:00:01]} 6. c3 {[%clk
00:09:49]} {[%emt 00:00:01]} e5 {[%clk 00:09:44]} {[%emt 00:00:06]} 7. d3
{[%clk 00:09:24]} {[%emt 00:00:25]} Qc7 {[%clk 00:09:40]} {[%emt 00:00:05]} 8.
h3 {[%clk 00:09:18]} {[%emt 00:00:06]} O-O {[%clk 00:09:38]} {[%emt 00:00:02]}
9. f4 {[%clk 00:09:09]} {[%emt 00:00:09]} Nbd7 {[%clk 00:09:34]} {[%emt
00:00:03]} 10. f5 {[%clk 00:08:54]} {[%emt 00:00:15]} b5 {[%clk 00:09:28]}
{[%emt 00:00:06]} 11. g4 {[%clk 00:08:39]} {[%emt 00:00:15]} Bb7 {[%clk
00:09:26]} {[%emt 00:00:02]} 12. Ng3 {[%clk 00:08:13]} {[%emt 00:00:26]} Nb6
{[%clk 00:09:17]} {[%emt 00:00:09]} 13. g5 {[%clk 00:07:55]} {[%emt 00:00:19]}
Nfd7 {[%clk 00:09:15]} {[%emt 00:00:01]} 14. f6 {[%clk 00:07:49]} {[%emt
00:00:06]} Bh8 {[%clk 00:09:13]} {[%emt 00:00:02]} 15. h4 {[%clk 00:07:39]}
{[%emt 00:00:10]} Rfe8 {[%clk 00:09:05]} {[%emt 00:00:08]} 16. h5 {[%clk
00:07:37]} {[%emt 00:00:03]} Nf8 {[%clk 00:09:03]} {[%emt 00:00:02]} 17. Kh2
{[%clk 00:06:17]} {[%emt 00:01:20]} Ne6 {[%clk 00:08:40]} {[%emt 00:00:23]} 18.
Rh1 {[%clk 00:05:35]} {[%emt 00:00:41]} c4 {[%clk 00:08:11]} {[%emt 00:00:29]}
19. hxg6 {[%clk 00:05:25]} {[%emt 00:00:10]} fxg6 {[%clk 00:08:10]} {[%emt
00:00:01]} 20. Na3 {[%clk 00:05:17]} {[%emt 00:00:09]} a6 {[%clk 00:07:48]}
{[%emt 00:00:21]} 21. d4 {[%clk 00:04:44]} {[%emt 00:00:33]} Nf4 {[%clk
00:07:39]} {[%emt 00:00:10]} 22. d5 {[%clk 00:04:16]} {[%emt 00:00:28]} Nd7
{[%clk 00:07:25]} {[%emt 00:00:13]} 23. Ne2 {[%clk 00:03:46]} {[%emt 00:00:30]}
Nxg2 {[%clk 00:07:15]} {[%emt 00:00:10]} 24. Kxg2 {[%clk 00:03:43]} {[%emt
00:00:03]} Nc5 {[%clk 00:07:15]} {[%emt 00:00:01]} 25. Ng3 {[%clk 00:03:26]}
{[%emt 00:00:17]} Rad8 {[%clk 00:06:34]} {[%emt 00:00:40]} 26. Be3 {[%clk
00:03:21]} {[%emt 00:00:05]} Nd3 {[%clk 00:06:26]} {[%emt 00:00:08]} 27. Qd2
{[%clk 00:03:02]} {[%emt 00:00:18]} Bc8 {[%clk 00:06:15]} {[%emt 00:00:12]} 28.
Nc2 {[%clk 00:02:56]} {[%emt 00:00:06]} Nxb2 {[%clk 00:06:11]} {[%emt
00:00:04]} 29. Raf1 {[%clk 00:02:45]} {[%emt 00:00:10]} Rf8 {[%clk 00:06:05]}
{[%emt 00:00:07]} 30. Nb4 {[%clk 00:02:41]} {[%emt 00:00:05]} Nd3 {[%clk
00:05:21]} {[%emt 00:00:44]} 31. Nc6 {[%clk 00:02:34]} {[%emt 00:00:06]} Rde8
{[%clk 00:05:20]} {[%emt 00:00:01]} 32. Rh6 {[%clk 00:01:37]} {[%emt 00:00:58]}
Rf7 {[%clk 00:05:14]} {[%emt 00:00:05]} 33. Rfh1 {[%clk 00:01:29]} {[%emt
00:00:08]} Bb7 {[%clk 00:05:04]} {[%emt 00:00:10]} 34. Ne7+ {[%clk 00:01:25]}
{[%emt 00:00:04]} Rexe7 {[%clk 00:05:03]} 35. fxe7 {[%clk 00:01:24]} {[%emt
00:00:01]} Qxe7 {[%clk 00:05:02]} {[%emt 00:00:01]} 36. Qd1 {[%clk 00:01:06]}
{[%emt 00:00:19]} Bc8 {[%clk 00:05:01]} {[%emt 00:00:01]} 37. R1h4 {[%clk
00:01:01]} {[%emt 00:00:05]} Nf4+ {[%clk 00:04:50]} {[%emt 00:00:11]} 38. Bxf4
{[%clk 00:00:53]} {[%emt 00:00:08]} exf4 {[%clk 00:04:49]} {[%emt 00:00:01]} 39.
Ne2 {[%clk 00:00:41]} {[%emt 00:00:12]} f3+ {[%clk 00:04:46]} {[%emt 00:00:03]}
40. Kh2 {[%clk 00:00:35]} {[%emt 00:00:05]} fxe2 41. Qxe2 {[%clk 00:00:34]}
Qe5+ {[%clk 00:04:42]} {[%emt 00:00:02]} 42. Kh1 {[%clk 00:00:33]} {[%emt
00:00:01]} Qxc3 {[%clk 00:04:34]} {[%emt 00:00:08]} 43. Rxh7 {[%clk 00:00:26]}
{[%emt 00:00:07]} Rxh7 {[%clk 00:04:30]} {[%emt 00:00:03]} 44. Rxh7 {[%clk
00:00:25]} {[%emt 00:00:01]} Kxh7 {[%clk 00:04:29]} {[%emt 00:00:01]} 45. Qh2+
{[%clk 00:00:23]} {[%emt 00:00:01]} Kg8 {[%clk 00:04:26]} {[%emt 00:00:02]} 46.
Qxd6 {[%clk 00:00:22]} {[%emt 00:00:03]} Qa1+ {[%clk 00:04:16]} {[%emt
00:00:11]} 47. Kg2 {[%clk 00:00:21]} Qb2+ {[%clk 00:04:11]} {[%emt 00:00:04]}
48. Kf3 {[%clk 00:00:20]} {[%emt 00:00:01]} Qc3+ {[%clk 00:04:10]} {[%emt
00:00:01]} 49. Ke2 {[%clk 00:00:19]} {[%emt 00:00:02]} Bg4+ {[%clk 00:04:08]}
{[%emt 00:00:01]} 50. Kf1 {[%clk 00:00:16]} {[%emt 00:00:03]} Qf3+ {[%clk
00:04:05]} {[%emt 00:00:03]} 51. Kg1 {[%clk 00:00:13]} {[%emt 00:00:03]} Bd4+
{[%clk 00:04:03]} {[%emt 00:00:02]} 52. Kh2 {[%clk 00:00:12]} Qh3# {[%clk
00:04:01]} {[%emt 00:00:02]} 0-1